fUST/lending_fUST_20250421
["ID","MTS","AMOUNT","RATE_DAILY","PERIOD"]
[358496188,1745211049421,-500.0,0.00019178,2]
[358496189,1745211049433,-500.0,0.00019178,2]
[358496190,1745211049443,-151.0,0.00019178,2]
[358496191,1745211049452,-71.1723096,0.00019178,2]
[358496192,1745211057651,-160.57650463,0.00016761,2]
[358496193,1745211062867,-268.83301791,0.00016761,2]
[358496194,1745211065643,-149.8464692,0.00016761,2]
[358496195,1745211065669,-2.1535308,0.00016761,2]
[358496196,1745211156316,-174.43767722,0.00016561,2]
[358496197,1745211179750,-267.88668123,0.00016561,2]
[358496198,1745211180220,-90.88509501,0.00016561,2]
[358496199,1745211180245,-825.56232278,0.00016561,2]
[358496200,1745211180276,-500.0,0.00016661,2]
[358496201,1745211180298,-158.42297383,0.00016661,2]
[358496202,1745211180326,-500.0,0.00016661,2]
[358496203,1745211180354,-500.0,0.00016661,2]
[358496204,1745211180381,-500.0,0.00016661,2]
[358496205,1745211180409,-500.0,0.00016661,2]
[358496206,1745211180438,-500.0,0.00016661,2]
[358496207,1745211180464,-500.0,0.00016661,2]
[358496208,1745211180492,-500.0,0.00016661,2]
[358496209,1745211180519,-179.90833723,0.00016661,2]
[358496210,1745211180546,-500.0,0.00016661,2]
[358496211,1745211180573,-500.0,0.00016661,2]
[358496212,1745211180599,-500.0,0.00016661,2]
[358496213,1745211180625,-500.0,0.00016661,2]
[358496214,1745211180651,-500.0,0.00016661,2]
[358496215,1745211180675,-500.0,0.00016661,2]
[358496216,1745211180700,-500.0,0.00016661,2]
[358496217,1745211180727,-500.0,0.00016661,2]
[358496218,1745211180753,-500.0,0.00016661,2]
[358496219,1745211180779,-500.0,0.00016661,2]
[358496220,1745211180805,-500.0,0.00016661,2]
[358496221,1745211180830,-500.0,0.00016661,2]
[358496222,1745211180855,-500.0,0.00016661,2]
[358496223,1745211180879,-500.0,0.00016661,2]
[358496224,1745211180899,-300.0,0.00016661,2]
[358496225,1745211180920,-133145.47772623,0.00016662,2]
[358496226,1745211181488,500.0,0.00016661,2]
[358496227,1745211184602,199.66408617,0.00016561,2]
[358496228,1745211278591,-300.0,0.00016561,2]
[358496229,1745211377961,-500.0,0.00016561,2]
[358496230,1745211378569,-186.2683292,0.00016561,2]
[358496232,1745211445494,-13.7316708,0.00016561,2]
[358496235,1745212173322,1000.0,0.00025,30]
[358496251,1745212232106,-1000.0,0.0001779,2]
[358496252,1745212232116,-250.0,0.0001779,2]
[358496253,1745212232125,-245.39504562,0.0001779,2]
[358496254,1745212232135,-300.0,0.0001779,2]
[358496255,1745212232144,-280.73442,0.0001789,2]
[358496256,1745212232154,-1897.91,0.000179,2]
[358496257,1745212232165,-403.0,0.00017923,2]
[358496258,1745212232174,-300.0,0.00017971,2]
[358496259,1745212232185,-300.0,0.00017972,2]
[358496260,1745212232194,-250.0,0.00017973,2]
[358496261,1745212232204,-1875.5397871,0.00017987,2]
[358496262,1745212232214,-155.59689265,0.00018812,2]
[358496263,1745212232223,-2578.2599904,0.00018812,2]
[358496264,1745212232233,-160.0,0.00018866,2]
[358496265,1745212232242,-420.65680271,0.00018866,2]
[358496267,1745212232251,-12568.0511546,0.00018866,2]
[358496269,1745212232261,-160.0,0.00018866,2]
[358496270,1745212232270,-729.16666667,0.00018866,2]
[358496271,1745212232280,-160.0,0.00018896,2]
[358496272,1745212232291,-160.0,0.00018896,2]
[358496273,1745212232300,-500.0,0.000189,2]
[358496274,1745212232310,-787.15853577,0.000189,2]
[358496275,1745212232319,-190.04206594,0.00019078,2]
[358496276,1745212232330,-190.04206594,0.00019147,2]
[358496277,1745212232340,-207.4,0.00019166,2]
[358496278,1745212232349,-151.0,0.00019166,2]
[358496279,1745212232359,-500.0,0.00019173,2]
[358496280,1745212232369,-408.66284962,0.00019173,2]
[358496281,1745212232379,-503.59863014,0.00019173,2]
[358496282,1745212232388,-500.0,0.00019173,2]
[358496283,1745212232398,-500.0,0.00019173,2]
[358496284,1745212232408,-500.0,0.00019173,2]
[358496285,1745212232418,-177.580266,0.00019177,2]
[358496286,1745212232427,-500.0,0.00019177,2]
[358496287,1745212232437,-454.64907689,0.00019177,2]
[358496288,1745212232447,-500.0,0.00019177,2]
[358496289,1745212232457,-500.0,0.00019177,2]
[358496290,1745212232467,-189.32122629,0.00019177,2]
[358496291,1745212232478,-500.0,0.00019177,2]
[358496292,1745212232488,-579.25599174,0.00019177,2]
[358496293,1745212232498,-579.25599174,0.00019177,2]
[358496294,1745212232508,-579.25599174,0.00019177,2]
[358496295,1745212232518,-579.25599174,0.00019177,2]
[358496296,1745212232527,-579.25599174,0.00019177,2]
[358496297,1745212232537,-500.0,0.00019177,2]
[358496298,1745212232547,-158.42297383,0.00019177,2]
[358496299,1745212232558,-500.0,0.00019177,2]
[358496300,1745212232568,-500.0,0.00019177,2]
[358496301,1745212232578,-500.0,0.00019177,2]
[358496302,1745212232588,-500.0,0.00019177,2]
[358496303,1745212232598,-161.91750351,0.00019177,2]
[358496304,1745212232608,-500.0,0.00019177,2]
[358496305,1745212232618,-500.0,0.00019177,2]
[358496306,1745212232628,-500.0,0.00019177,2]
[358496307,1745212232638,-500.0,0.00019177,2]
[358496308,1745212232648,-500.0,0.00019177,2]
[358496309,1745212232658,-500.0,0.00019177,2]
[358496310,1745212232668,-500.0,0.00019177,2]
[358496311,1745212232678,-500.0,0.00019177,2]
[358496312,1745212232687,-500.0,0.00019177,2]
[358496313,1745212232697,-500.0,0.00019177,2]
[358496314,1745212232706,-500.0,0.00019177,2]
[358496315,1745212232715,-500.0,0.00019177,2]
[358496316,1745212232724,-500.0,0.00019177,2]
[358496317,1745212232734,-579.25599174,0.00019177,2]
[358496318,1745212232744,-579.25599174,0.00019177,2]
[358496319,1745212232753,-512.05212917,0.00019178,2]
[358496320,1745212232764,-500.0,0.00019178,2]
[358496321,1745212232776,-500.0,0.00019178,2]
[358496322,1745212232785,-500.0,0.00019178,2]
[358496323,1745212232915,-500.0,0.00019178,2]
[358496324,1745212232925,-428.74147739,0.00019178,2]
[358496325,1745212232936,-500.0,0.00019178,2]
[358496326,1745212232946,-500.0,0.00019178,2]
[358496327,1745212232956,-500.0,0.00019178,2]
[358496328,1745212232966,-500.0,0.00019178,2]
[358496329,1745212232975,-500.0,0.00019178,2]
[358496330,1745212232985,-500.0,0.00019178,2]
[358496331,1745212232994,-504.0100806,0.00019178,2]
[358496332,1745212233004,-500.0,0.00019178,2]
[358496333,1745212233013,-500.0,0.00019178,2]
[358496334,1745212233023,-500.0,0.00019178,2]
[358496335,1745212233033,-500.0,0.00019178,2]
[358496336,1745212233043,-500.0,0.00019178,2]
[358496337,1745212233053,-500.0,0.00019178,2]
[358496338,1745212233063,-500.0,0.00019178,2]
[358496339,1745212233072,-500.0,0.00019178,2]
[358496340,1745212233082,-500.0,0.00019178,2]
[358496341,1745212233092,-500.0,0.00019178,2]
[358496342,1745212233102,-747.93,0.00019178,2]
[358496343,1745212233111,-500.0,0.00019178,2]
[358496344,1745212233121,-500.0,0.00019178,2]
[358496345,1745212233131,-500.0,0.00019178,2]
[358496346,1745212233141,-500.0,0.00019178,2]
[358496347,1745212233151,-151.0,0.00019178,2]
[358496348,1745212233161,-1000.0,0.00019178,2]
[358496349,1745212233171,-500.0,0.00019178,2]
[358496350,1745212233181,-500.0,0.00019178,2]
[358496351,1745212233191,-504.97905599,0.00019178,2]
[358496352,1745212233201,-500.0,0.00019178,2]
[358496353,1745212233211,-500.0,0.00019178,2]
[358496354,1745212233221,-500.0,0.00019178,2]
[358496355,1745212233230,-500.0,0.00019178,2]
[358496356,1745212233240,-511.14060437,0.00019178,2]
[358496357,1745212233249,-500.0,0.00019178,2]
[358496358,1745212233259,-500.0,0.00019178,2]
[358496359,1745212233269,-500.0,0.00019178,2]
[358496360,1745212233279,-500.0,0.00019178,2]
[358496361,1745212233289,-500.0,0.00019178,2]
[358496362,1745212233300,-500.0,0.00019178,2]
[358496363,1745212233310,-500.0,0.00019178,2]
[358496364,1745212233320,-500.0,0.00019178,2]
[358496365,1745212233329,-500.0,0.00019178,2]
[358496366,1745212233339,-500.0,0.00019178,2]
[358496367,1745212233348,-500.0,0.00019178,2]
[358496368,1745212233358,-500.0,0.00019178,2]
[358496369,1745212233367,-500.0,0.00019178,2]
[358496370,1745212233377,-500.0,0.00019178,2]
[358496371,1745212233387,-500.0,0.00019178,2]
[358496372,1745212233397,-500.0,0.00019178,2]
[358496373,1745212233407,-500.0,0.00019178,2]
[358496374,1745212233417,-649.39,0.00019178,2]
[358496375,1745212233427,-500.0,0.00019178,2]
[358496376,1745212233436,-503.7811046,0.00019178,2]
[358496377,1745212233446,-500.0,0.00019178,2]
[358496378,1745212233456,-500.0,0.00019178,2]
[358496379,1745212233465,-500.0,0.00019178,2]
[358496380,1745212233476,-500.0,0.00019178,2]
[358496381,1745212233486,-459.83858815,0.00019178,2]
[358496382,1745212233496,-513.27432183,0.00019178,2]
[358496383,1745212233506,-151.0,0.00019178,2]
[358496384,1745212233515,-510.43668985,0.00019178,2]
[358496385,1745212233525,-500.0,0.00019178,2]
[358496386,1745212233535,-500.0,0.00019178,2]
[358496387,1745212233546,-500.0,0.00019178,2]
[358496388,1745212233556,-500.0,0.00019178,2]
[358496389,1745212233565,-500.0,0.00019178,2]
[358496390,1745212233575,-500.0,0.00019178,2]
[358496391,1745212233584,-500.0,0.00019178,2]
[358496392,1745212233594,-151.0,0.00019178,2]
[358496393,1745212233604,-500.0,0.00019178,2]
[358496394,1745212233613,-500.0,0.00019178,2]
[358496395,1745212233624,-500.0,0.00019178,2]
[358496396,1745212233634,-151.0,0.00019178,2]
[358496397,1745212233644,-500.0,0.00019178,2]
[358496398,1745212233653,-500.0,0.00019178,2]
[358496399,1745212233663,-511.93870843,0.00019178,2]
[358496400,1745212233673,-500.0,0.00019178,2]
[358496401,1745212233683,-500.0,0.00019178,2]
[358496402,1745212233693,-500.0,0.00019178,2]
[358496403,1745212233703,-500.0,0.00019178,2]
[358496404,1745212233713,-500.0,0.00019178,2]
[358496405,1745212233723,-500.0,0.00019178,2]
[358496406,1745212233733,-151.0,0.00019178,2]
[358496407,1745212233743,-500.0,0.00019178,2]
[358496408,1745212233753,-500.0,0.00019178,2]
[358496409,1745212233762,-535.48775758,0.00019178,2]
[358496410,1745212233776,-549.6,0.00019178,2]
[358496411,1745212233785,-500.0,0.00019178,2]
[358496412,1745212233794,-500.0,0.00019178,2]
[358496413,1745212233804,-597.31,0.00019178,2]
[358496414,1745212233815,-500.0,0.00019178,2]
[358496415,1745212233825,-500.0,0.00019178,2]
[358496416,1745212233835,-270.73786975,0.00019178,2]
[358496417,1745212233844,-500.0,0.00019178,2]
[358496418,1745212233854,-566.36,0.00019178,2]
[358496419,1745212233863,-500.0,0.00019178,2]
[358496420,1745212233874,-500.0,0.00019178,2]
[358496421,1745212233883,-500.0,0.00019178,2]
[358496422,1745212233893,-500.0,0.00019178,2]
[358496423,1745212233904,-151.0,0.00019178,2]
[358496424,1745212233913,-500.0,0.00019178,2]
[358496425,1745212233923,-151.0,0.00019178,2]
[358496426,1745212233933,-500.0,0.00019178,2]
[358496427,1745212233944,-500.0,0.00019178,2]
[358496428,1745212233954,-151.0,0.00019178,2]
[358496429,1745212233964,-505.55197164,0.00019178,2]
[358496430,1745212233974,-521.07755977,0.00019178,2]
[358496431,1745212233984,-500.0,0.00019178,2]
[358496432,1745212233993,-515.82960303,0.00019178,2]
[358496433,1745212234004,-500.0,0.00019178,2]
[358496434,1745212234013,-500.0,0.00019178,2]
[358496435,1745212234024,-500.0,0.00019178,2]
[358496436,1745212234033,-151.0,0.00019178,2]
[358496437,1745212234043,-503.71042935,0.00019178,2]
[358496438,1745212234053,-500.0,0.00019178,2]
[358496439,1745212234063,-547.21,0.00019178,2]
[358496440,1745212234073,-151.0,0.00019178,2]
[358496441,1745212234083,-500.0,0.00019178,2]
[358496442,1745212234092,-506.58022226,0.00019178,2]
[358496443,1745212234102,-500.0,0.00019178,2]
[358496444,1745212234112,-505.61064246,0.00019178,2]
[358496445,1745212234122,-727.64,0.00019178,2]
[358496446,1745212234132,-500.0,0.00019178,2]
[358496447,1745212234142,-506.87136663,0.00019178,2]
[358496448,1745212234152,-151.0,0.00019178,2]
[358496449,1745212234162,-500.0,0.00019178,2]
[358496450,1745212234171,-500.0,0.00019178,2]
[358496451,1745212234181,-500.0,0.00019178,2]
[358496452,1745212234191,-2330.21,0.00019178,2]
[358496453,1745212234200,-500.0,0.00019178,2]
[358496454,1745212234210,-500.0,0.00019178,2]
[358496455,1745212234220,-500.0,0.00019178,2]
[358496456,1745212234230,-500.0,0.00019178,2]
[358496457,1745212234239,-500.0,0.00019178,2]
[358496458,1745212234249,-500.0,0.00019178,2]
[358496459,1745212234259,-151.0,0.00019178,2]
[358496460,1745212234268,-261.22135751,0.00019178,2]
[358496461,1745212234278,-151.0,0.00019178,2]
[358496462,1745212234288,-500.0,0.00019178,2]
[358496463,1745212234298,-433.77955929,0.00019178,2]
[358496464,1745212234309,-500.0,0.00019178,2]
[358496465,1745212234319,-151.0,0.00019178,2]
[358496466,1745212234329,-500.0,0.00019178,2]
[358496467,1745212234339,-500.0,0.00019178,2]
[358496468,1745212234350,-500.0,0.00019178,2]
[358496469,1745212234360,-500.0,0.00019178,2]
[358496470,1745212234370,-500.0,0.00019178,2]
[358496471,1745212234380,-500.0,0.00019178,2]
[358496472,1745212234391,-151.0,0.00019178,2]
[358496473,1745212234400,-500.0,0.00019178,2]
[358496474,1745212234410,-500.0,0.00019178,2]
[358496475,1745212234420,-151.0,0.00019178,2]
[358496476,1745212234430,-500.0,0.00019178,2]
[358496477,1745212234440,-500.0,0.00019178,2]
[358496478,1745212234451,-500.0,0.00019178,2]
[358496479,1745212234461,-500.0,0.00019178,2]
[358496480,1745212234470,-151.0,0.00019178,2]
[358496481,1745212234480,-500.0,0.00019178,2]
[358496482,1745212234490,-500.0,0.00019178,2]
[358496483,1745212234500,-500.0,0.00019178,2]
[358496484,1745212234510,-828.0,0.00019178,2]
[358496485,1745212234519,-500.0,0.00019178,2]
[358496486,1745212234530,-500.0,0.00019178,2]
[358496487,1745212234540,-500.0,0.00019178,2]
[358496488,1745212234550,-500.0,0.00019178,2]
[358496489,1745212234559,-500.0,0.00019178,2]
[358496490,1745212234570,-500.0,0.00019178,2]
[358496491,1745212234579,-500.0,0.00019178,2]
[358496492,1745212234590,-151.0,0.00019178,2]
[358496493,1745212234599,-500.0,0.00019178,2]
[358496494,1745212234609,-500.0,0.00019178,2]
[358496495,1745212234619,-500.0,0.00019178,2]
[358496496,1745212234629,-500.0,0.00019178,2]
[358496497,1745212234639,-500.0,0.00019178,2]
[358496498,1745212234648,-738.82,0.00019178,2]
[358496499,1745212234658,-38.77188478,0.00019178,2]
[358496692,1745212246287,-4819.28408599,0.000189,2]
[358496693,1745212246501,-469.67426041,0.00019178,2]
[358496694,1745212246514,-500.0,0.00019178,2]
[358496695,1745212246524,-500.0,0.00019178,2]
[358496696,1745212246533,-500.0,0.00019178,2]
[358496697,1745212246543,-632.07,0.00019178,2]
[358496698,1745212246552,-151.0,0.00019178,2]
[358496699,1745212246562,-500.0,0.00019178,2]
[358496700,1745212246571,-506.41099269,0.00019178,2]
[358496701,1745212246580,-500.0,0.00019178,2]
[358496702,1745212246590,-500.0,0.00019178,2]
[358496703,1745212246599,-500.0,0.00019178,2]
[358496704,1745212246609,-500.0,0.00019178,2]
[358496705,1745212246618,-503.67885041,0.00019178,2]
[358496706,1745212246628,-500.0,0.00019178,2]
[358496707,1745212246638,-223.32772189,0.00019178,2]
[358496740,1745213432120,-250.0,0.0001769,2]
[358496741,1745213432133,-1000.0,0.0001769,2]
[358496742,1745213432145,-259.90237004,0.00018031,2]
[358496743,1745213432180,-143.09762996,0.00018031,2]
[358496744,1745213432192,-280.7344203,0.00018116,2]
[358496745,1745213432204,-160.0,0.00018895,2]
[358496746,1745213432216,-160.0,0.00018895,2]
[358496749,1745213432229,-578.02727402,0.000189,2]
[358496750,1745213432241,-182.62722628,0.00019077,2]
[358496801,1745213438467,-227.20321467,0.00019077,2]
[358496802,1745213438477,-300.0,0.00019077,2]
[358496803,1745213438486,-570.12619782,0.00019078,2]
[358496804,1745213438495,-10808.52905701,0.00019078,2]
[358496805,1745213438505,-207.4,0.00019166,2]
[358496806,1745213438513,-151.0,0.00019166,2]
[358496807,1745213438523,-420.65680271,0.00019166,2]
[358496808,1745213438532,-12568.0511546,0.00019166,2]
[358496809,1745213438541,-160.0,0.00019166,2]
[358496810,1745213438550,-729.16666667,0.00019166,2]
[358496812,1745213438559,-160.0,0.00019167,2]
[358496813,1745213438568,-160.0,0.00019167,2]
[358496814,1745213438577,-371.600267,0.00019173,2]
[358496815,1745213438586,-500.0,0.00019173,2]
[358496816,1745213438595,-507.89515959,0.00019173,2]
[358496818,1745213438604,-500.0,0.00019173,2]
[358496820,1745213438614,-500.0,0.00019173,2]
[358496822,1745213438623,-500.0,0.00019173,2]
[358496824,1745213438632,-500.0,0.00019173,2]
[358496826,1745213438641,-500.0,0.00019173,2]
[358496828,1745213438650,-500.0,0.00019173,2]
[358496830,1745213438660,-500.0,0.00019173,2]
[358496832,1745213438669,-500.0,0.00019173,2]
[358496834,1745213438678,-500.0,0.00019173,2]
[358496836,1745213438688,-1349.02015835,0.00019177,2]
[358496838,1745213438698,-160.0,0.00019177,2]
[358496840,1745213438707,-500.0,0.00019177,2]
[358496842,1745213438716,-500.0,0.00019177,2]
[358496844,1745213438727,-329.39361126,0.00019177,2]
[358496846,1745213438736,-579.25599174,0.00019177,2]
[358496848,1745213438745,-579.25599174,0.00019177,2]
[358496850,1745213438754,-579.25599174,0.00019177,2]
[358496852,1745213438764,-579.25599174,0.00019177,2]
[358496854,1745213438773,-579.25599174,0.00019177,2]
[358496856,1745213438782,-579.25599174,0.00019177,2]
[358496858,1745213438791,-579.25599174,0.00019177,2]
[358496860,1745213438800,-579.25599174,0.00019177,2]
[358496862,1745213438809,-579.25599174,0.00019177,2]
[358496864,1745213438818,-63389.48526584,0.00019178,2]
[358496866,1745213438827,-3409.52506198,0.00019178,3]
[358496868,1745213438837,-500.0,0.00019178,2]
[358496870,1745213438846,-151.0,0.00019178,2]
[358496872,1745213438855,-500.0,0.00019178,2]
[358496874,1745213438864,-151.0,0.00019178,2]
[358496876,1745213438874,-184.496752,0.00019178,2]
[358496878,1745213438885,-500.0,0.00019178,2]
[358496880,1745213438894,-500.0,0.00019178,2]
[358496882,1745213438904,-500.0,0.00019178,2]
[358496884,1745213438914,-500.0,0.00019178,2]
[358496887,1745213438924,-500.0,0.00019178,2]
[358496889,1745213438933,-500.0,0.00019178,2]
[358496891,1745213438942,-151.0,0.00019178,2]
[358496893,1745213438956,-151.0,0.00019178,2]
[358496895,1745213438965,-500.0,0.00019178,2]
[358496897,1745213438975,-151.0,0.00019178,2]
[358496899,1745213438983,-151.0,0.00019178,2]
[358496901,1745213438994,-500.0,0.00019178,2]
[358496903,1745213439003,-151.0,0.00019178,2]
[358496905,1745213439013,-151.0,0.00019178,2]
[358496907,1745213439022,-500.0,0.00019178,2]
[358496909,1745213439031,-613.43,0.00019178,2]
[358496911,1745213439040,-560.45,0.00019178,2]
[358496913,1745213439049,-151.0,0.00019178,2]
[358496915,1745213439058,-151.0,0.00019178,2]
[358496917,1745213439068,-500.0,0.00019178,2]
[358496920,1745213439079,-500.0,0.00019178,2]
[358496922,1745213439088,-151.0,0.00019178,2]
[358496924,1745213439097,-151.0,0.00019178,2]
[358496926,1745213439106,-500.0,0.00019178,2]
[358496928,1745213439115,-151.0,0.00019178,2]
[358496930,1745213439123,-151.0,0.00019178,2]
[358496932,1745213439132,-500.0,0.00019178,2]
[358496934,1745213439141,-500.0,0.00019178,2]
[358496936,1745213439150,-151.0,0.00019178,2]
[358496938,1745213439159,-151.0,0.00019178,2]
[358496940,1745213439168,-500.0,0.00019178,2]
[358496942,1745213439178,-500.0,0.00019178,2]
[358496944,1745213439187,-273.563956,0.00019178,2]
[358496946,1745213439196,-500.0,0.00019178,2]
[358496948,1745213439206,-509.07,0.00019178,2]
[358496950,1745213439215,-500.0,0.00019178,2]
[358496952,1745213439226,-500.0,0.00019178,2]
[358496954,1745213439235,-500.0,0.00019178,2]
[358496956,1745213439244,-500.0,0.00019178,2]
[358496958,1745213439254,-500.0,0.00019178,2]
[358496960,1745213439263,-500.0,0.00019178,2]
[358496962,1745213439273,-500.0,0.00019178,2]
[358496964,1745213439283,-500.0,0.00019178,2]
[358496966,1745213439292,-500.0,0.00019178,2]
[358496968,1745213439301,-500.0,0.00019178,2]
[358496971,1745213439312,-511.66934655,0.00019178,2]
[358496973,1745213439322,-500.0,0.00019178,2]
[358496974,1745213439332,-500.0,0.00019178,2]
[358496977,1745213439342,-500.0,0.00019178,2]
[358496979,1745213439355,-508.00080123,0.00019178,2]
[358496981,1745213439365,-505.89393261,0.00019178,2]
[358496983,1745213439375,-500.0,0.00019178,2]
[358496985,1745213439384,-500.0,0.00019178,2]
[358496987,1745213439394,-503.70099867,0.00019178,2]
[358496989,1745213439404,-450.34730624,0.00019178,2]
[358496991,1745213439414,-283.95281541,0.00019178,2]
[358496993,1745213439424,-266.51527935,0.00019178,2]
[358496995,1745213439435,-163.337373,0.00019178,2]
[358496997,1745213439446,-163.337373,0.00019178,2]
[358496999,1745213439455,-151.0,0.00019178,2]
[358497001,1745213439464,-163.337373,0.00019178,2]
[358497003,1745213439474,-151.0,0.00019178,2]
[358497005,1745213439484,-151.0,0.00019178,2]
[358497007,1745213439494,-505.6626276,0.00019178,2]
[358497009,1745213439503,-500.0,0.00019178,2]
[358497011,1745213439513,-405.92440869,0.00019178,2]
[358497013,1745213439523,-500.46915371,0.00019178,2]
[358497015,1745213439533,-907.89,0.00019178,2]
[358497017,1745213439542,-500.0,0.00019178,2]
[358497019,1745213439552,-1981.43,0.00019178,2]
[358497021,1745213439561,-151.0,0.00019178,2]
[358497023,1745213439571,-151.0,0.00019178,2]
[358497025,1745213439580,-151.0,0.00019178,2]
[358497027,1745213439590,-179.496163,0.00019178,2]
[358497029,1745213439599,-500.0,0.00019178,2]
[358497031,1745213439609,-507.10899637,0.00019178,2]
[358497033,1745213439618,-500.0,0.00019178,2]
[358497035,1745213439628,-500.0,0.00019178,2]
[358497037,1745213439638,-500.0,0.00019178,2]
[358497039,1745213439648,-151.0,0.00019178,2]
[358497041,1745213439659,-151.0,0.00019178,2]
[358497043,1745213439668,-151.0,0.00019178,2]
[358497045,1745213439678,-151.0,0.00019178,2]
[358497047,1745213439688,-151.0,0.00019178,2]
[358497049,1745213439698,-151.0,0.00019178,2]
[358497052,1745213439707,-215.88951422,0.00019178,2]
[358497054,1745213439717,-500.0,0.00019178,2]
[358497056,1745213439727,-500.0,0.00019178,2]
[358497058,1745213439736,-500.0,0.00019178,2]
[358497060,1745213439746,-503.4366245,0.00019178,2]
[358497062,1745213439755,-500.0,0.00019178,2]
[358497064,1745213439764,-507.40013188,0.00019178,2]
[358497066,1745213439774,-528.44508723,0.00019178,2]
[358497068,1745213439783,-500.0,0.00019178,2]
[358497070,1745213439793,-500.0,0.00019178,2]
[358497073,1745213439803,-500.0,0.00019178,2]
[358497074,1745213439812,-151.0,0.00019178,2]
[358497079,1745213439822,-508.67426163,0.00019178,2]
[358497080,1745213439831,-151.0,0.00019178,2]
[358497083,1745213439841,-151.0,0.00019178,2]
[358497086,1745213439850,-500.0,0.00019178,2]
[358497089,1745213439859,-504.13952296,0.00019178,2]
[358497091,1745213439869,-500.0,0.00019178,2]
[358497094,1745213439880,-510.5475902,0.00019178,2]
[358497096,1745213439889,-500.0,0.00019178,2]
[358497098,1745213439899,-151.0,0.00019178,2]
[358497100,1745213439908,-500.0,0.00019178,2]
[358497102,1745213439918,-151.0,0.00019178,2]
[358497104,1745213439928,-151.0,0.00019178,2]
[358497106,1745213439937,-420.08757795,0.00019178,2]
[358497108,1745213439955,-79.91242205,0.00019178,2]
[358497110,1745213439965,-500.0,0.00019178,2]
[358497112,1745213439975,-542.77,0.00019178,2]
[358497114,1745213439985,-500.0,0.00019178,2]
[358497116,1745213439994,-500.0,0.00019178,2]
[358497118,1745213440004,-500.0,0.00019178,2]
[358497120,1745213440013,-500.0,0.00019178,2]
[358497122,1745213440023,-500.0,0.00019178,2]
[358497124,1745213440033,-500.0,0.00019178,2]
[358497126,1745213440042,-151.0,0.00019178,2]
[358497128,1745213440051,-151.0,0.00019178,2]
[358497130,1745213440060,-151.0,0.00019178,2]
[358497132,1745213440071,-151.0,0.00019178,2]
[358497134,1745213440080,-151.0,0.00019178,2]
[358497136,1745213440090,-151.0,0.00019178,2]
[358497138,1745213440099,-500.0,0.00019178,2]
[358497140,1745213440108,-500.0,0.00019178,2]
[358497142,1745213440118,-2351.99,0.00019178,2]
[358497144,1745213440127,-500.0,0.00019178,2]
[358497146,1745213440138,-500.0,0.00019178,2]
[358497149,1745213440148,-500.0,0.00019178,2]
[358497151,1745213440158,-500.0,0.00019178,2]
[358497153,1745213440168,-500.0,0.00019178,2]
[358497155,1745213440177,-503.55473835,0.00019178,2]
[358497157,1745213440187,-500.0,0.00019178,2]
[358497159,1745213440196,-151.0,0.00019178,2]
[358497161,1745213440206,-151.0,0.00019178,2]
[358497163,1745213440215,-151.0,0.00019178,2]